{"text_format":"3","workbook":"xlsx","n_sheets":2,"sheets":["Início","Plan. de Orçamento de Natal"],"not_rendered":{"defined_names":1},"read":"whole","date_system":"1900"}

{"sheet":"Início","index":0,"n_rows":7,"n_cols":2,"rows_kept":7}
[null,"SOBRE ESTE MODELO"]
[null,"Controle suas despesas com este Planejador de Orçamento de Natal."]
[null,"Insira o orçamento e as despesas real realizadas nos vários itens nas tabelas."]
[null,"O Orçamento de Natal, o Valor total real gasto e a Diferença são calculados automaticamente para você."]
[null,"Observação: "]
[null,"instruções adicionais são fornecidas na coluna A da planilha PLANEJADOR DE ORÇAMENTO DE NATAL. Este texto está oculto de propósito. Para removê-lo, selecione a coluna A e selecione Excluir. Para reexibir o texto, selecione a coluna A e altere a cor da fonte."]
[null,"Saiba mais sobre as tabelas pressionando Shift e F10 dentro de uma tabela, selecione a opção TABELA e depois TEXTO ALTERNATIVO."]

{"sheet":"Plan. de Orçamento de Natal","index":1,"n_rows":32,"n_cols":12,"rows_kept":32,"merged":[[1,1,5,4],[2,8,2,9],[3,8,3,9],[4,8,4,9],[6,1,6,4],[6,8,6,11],[15,1,15,4],[15,8,15,11],[25,1,25,4],[25,8,25,11]]}
["Insira o Orçamento e as Despesas real realizadas em cada categoria nas respectivas tabelas desta planilha. Instruções úteis sobre como usar esta planilha estão nas células desta coluna. Pressione Seta para baixo para começar. "]
["O título desta planilha está na célula à direita.","Planejador De Orçamento De Natal"]
["O orçamento de Natal é calculado automaticamente na célula K3.",{"$nulls":7},"ORÇAMENTO DE NATAL",null,{"$f":"SUM(Presentes[Orçamento],Embalagem[Orçamento],(Viagem[Previsão],(Refeições[Orçamento],(Entretenimento[Orçamento],Diversos[Previsão]))))","v":{"v":750,"d":"R$ 750.00"}}]
["O gasto real é calculado automaticamente na célula K4.",{"$nulls":7},"GASTO REAL",null,{"$f":"SUM((Presentes[Real],(Embalagem[Real],(Viagem[Real],(Refeições[Real],(Entretenimento[Real],(Diversos[Real])))))))","v":{"v":820,"d":"R$ 820.00"}}]
["A diferença é calculada automaticamente na célula K5. A próxima instrução está na célula A7.",{"$nulls":7},"DIFERENÇA (acima/abaixo do orçamento)",null,{"$f":"SUM(K3-K4)","v":{"v":-70,"d":"-R$ 70.00"}}]
[]
["O rótulo Presentes está na célula à direita e o rótulo Refeições de Natal está na célula I7.","Presentes",{"$nulls":6},"Refeições de Natal"]
["Insira as despesas com Presentes na tabela que começa na célula à direita e as despesas com as Refeições na tabela que começa na célula I8. A próxima instrução está na célula A16.","Item","Orçamento","Real","Diferença",{"$nulls":3},"Item","Orçamento","Real","Diferença"]
[null,"Família",{"v":500,"d":"R$ 500.00"},{"v":495,"d":"R$ 495.00"},{"$f":"Presentes[[#This Row],[Orçamento]]-Presentes[[#This Row],[Real]]","v":{"v":5,"d":"R$ 5.00"}},{"$nulls":3},"Supermercado",null,null,{"$f":"Refeições[[#This Row],[Orçamento]]-Refeições[[#This Row],[Real]]","v":{"v":0,"d":"R$ 0.00"}}]
[null,"Amigos",{"v":250,"d":"R$ 250.00"},{"v":325,"d":"R$ 325.00"},{"$f":"Presentes[[#This Row],[Orçamento]]-Presentes[[#This Row],[Real]]","v":{"v":-75,"d":"-R$ 75.00"}},{"$nulls":3},"Bebidas",null,null,{"$f":"Refeições[[#This Row],[Orçamento]]-Refeições[[#This Row],[Real]]","v":{"v":0,"d":"R$ 0.00"}}]
[null,"Colegas de trabalho",null,null,{"$f":"Presentes[[#This Row],[Orçamento]]-Presentes[[#This Row],[Real]]","v":{"v":0,"d":"R$ 0.00"}},{"$nulls":3},"Decorações",null,null,{"$f":"Refeições[[#This Row],[Orçamento]]-Refeições[[#This Row],[Real]]","v":{"v":0,"d":"R$ 0.00"}}]
[null,"Professores, babás etc.",null,null,{"$f":"Presentes[[#This Row],[Orçamento]]-Presentes[[#This Row],[Real]]","v":{"v":0,"d":"R$ 0.00"}},{"$nulls":3},"Outros (guia na última coluna desta linha para Adicionar linha)",null,null,{"$f":"Refeições[[#This Row],[Orçamento]]-Refeições[[#This Row],[Real]]","v":{"v":0,"d":"R$ 0.00"}}]
[null,"Doações de caridade",null,null,{"$f":"Presentes[[#This Row],[Orçamento]]-Presentes[[#This Row],[Real]]","v":{"v":0,"d":"R$ 0.00"}},{"$nulls":3},"Total",{"$f":"SUBTOTAL(109,Refeições[Orçamento])","v":{"v":0,"d":"R$ 0.00"}},{"$f":"SUBTOTAL(109,Refeições[Real])","v":{"v":0,"d":"R$ 0.00"}},{"$f":"SUBTOTAL(109,Refeições[Diferença])","v":{"v":0,"d":"R$ 0.00"}}]
[null,"Outros (guia na última coluna desta linha para Adicionar linha)",null,null,{"$f":"Presentes[[#This Row],[Orçamento]]-Presentes[[#This Row],[Real]]","v":{"v":0,"d":"R$ 0.00"}}]
[null,"Total",{"$f":"SUBTOTAL(109,Presentes[Orçamento])","v":{"v":750,"d":"R$ 750.00"}},{"$f":"SUBTOTAL(109,Presentes[Real])","v":{"v":820,"d":"R$ 820.00"}},{"$f":"SUBTOTAL(109,Presentes[Diferença])","v":{"v":-70,"d":"-R$ 70.00"}}]
["O rótulo Embalagem está na célula à direita e o rótulo Entretenimento na célula I16.","Embalagem",{"$nulls":6},"Entretenimento"]
["Insira as despesas com Embalagem na tabela que começa na célula à direita e as despesas com Entretenimento na tabela que começa na célula I17. A próxima instrução está na célula A26.","Item","Orçamento","Real","Diferença",{"$nulls":3},"Item","Orçamento","Real","Diferença"]
[null,"Embalagem de presente",null,null,{"$f":"Embalagem[[#This Row],[Orçamento]]-Embalagem[[#This Row],[Real]]","v":{"v":0,"d":"R$ 0.00"}},{"$nulls":3},"Ajuda de terceiros (barman, serviço de bufê, limpeza, etc.)",null,null,{"$f":"Entretenimento[[#This Row],[Orçamento]]-Entretenimento[[#This Row],[Real]]","v":{"v":0,"d":"R$ 0.00"}}]
[null,"Etiquetas",null,null,{"$f":"Embalagem[[#This Row],[Orçamento]]-Embalagem[[#This Row],[Real]]","v":{"v":0,"d":"R$ 0.00"}},{"$nulls":3},"Decorações",null,null,{"$f":"Entretenimento[[#This Row],[Orçamento]]-Entretenimento[[#This Row],[Real]]","v":{"v":0,"d":"R$ 0.00"}}]
[null,"Materiais (faixas, fita, etc.)",null,null,{"$f":"Embalagem[[#This Row],[Orçamento]]-Embalagem[[#This Row],[Real]]","v":{"v":0,"d":"R$ 0.00"}},{"$nulls":3},"Comida e bebidas",null,null,{"$f":"Entretenimento[[#This Row],[Orçamento]]-Entretenimento[[#This Row],[Real]]","v":{"v":0,"d":"R$ 0.00"}}]
[null,"Caixas",null,null,{"$f":"Embalagem[[#This Row],[Orçamento]]-Embalagem[[#This Row],[Real]]","v":{"v":0,"d":"R$ 0.00"}},{"$nulls":3},"Vestuário",null,null,{"$f":"Entretenimento[[#This Row],[Orçamento]]-Entretenimento[[#This Row],[Real]]","v":{"v":0,"d":"R$ 0.00"}}]
[null,"Postagem",null,null,{"$f":"Embalagem[[#This Row],[Orçamento]]-Embalagem[[#This Row],[Real]]","v":{"v":0,"d":"R$ 0.00"}},{"$nulls":3},"Ingressos",null,null,{"$f":"Entretenimento[[#This Row],[Orçamento]]-Entretenimento[[#This Row],[Real]]","v":{"v":0,"d":"R$ 0.00"}}]
[null,"Outros (guia na última coluna desta linha para Adicionar linha)",null,null,{"$f":"Embalagem[[#This Row],[Orçamento]]-Embalagem[[#This Row],[Real]]","v":{"v":0,"d":"R$ 0.00"}},{"$nulls":3},"Jantares fora",null,null,{"$f":"Entretenimento[[#This Row],[Orçamento]]-Entretenimento[[#This Row],[Real]]","v":{"v":0,"d":"R$ 0.00"}}]
[null,"Total",{"$f":"SUBTOTAL(109,Embalagem[Orçamento])","v":{"v":0,"d":"R$ 0.00"}},{"$f":"SUBTOTAL(109,Embalagem[Real])","v":{"v":0,"d":"R$ 0.00"}},{"$f":"SUBTOTAL(109,Embalagem[Diferença])","v":{"v":0,"d":"R$ 0.00"}},{"$nulls":3},"Outros (guia na última coluna desta linha para Adicionar linha)",null,null,{"$f":"Entretenimento[[#This Row],[Orçamento]]-Entretenimento[[#This Row],[Real]]","v":{"v":0,"d":"R$ 0.00"}}]
[{"$nulls":8},"Total",{"$f":"SUBTOTAL(109,Entretenimento[Orçamento])","v":{"v":0,"d":"R$ 0.00"}},{"$f":"SUBTOTAL(109,Entretenimento[Real])","v":{"v":0,"d":"R$ 0.00"}},{"$f":"SUBTOTAL(109,Entretenimento[Diferença])","v":{"v":0,"d":"R$ 0.00"}}]
["O rótulo Viagem está na célula à direita e o rótulo Diversos na célula I26.","Viagem",{"$nulls":6},"Diversos"]
["Insira as despesas com Viagem na tabela que começa na célula à direita e as despesas com Despesas diversos na tabela que começa na célula I27.","Item","Previsão","Real","Diferença",{"$nulls":3},"Item","Previsão","Real","Diferença"]
[null,"Passagem aérea",null,null,{"$f":"_xlfn.SINGLE(Viagem[[#This Row],[Previsão]])-Viagem[[#This Row],[Real]]","v":{"v":0,"d":"R$ 0.00"}},{"$nulls":3},"Fotos Natalinas",null,null,{"$f":"_xlfn.SINGLE(Diversos[[#This Row],[Previsão]])-Diversos[[#This Row],[Real]]","v":{"v":0,"d":"R$ 0.00"}}]
[null,"Hospedagem",null,null,{"$f":"_xlfn.SINGLE(Viagem[[#This Row],[Previsão]])-Viagem[[#This Row],[Real]]","v":{"v":0,"d":"R$ 0.00"}},{"$nulls":3},"Combustível ",null,null,{"$f":"_xlfn.SINGLE(Diversos[[#This Row],[Previsão]])-Diversos[[#This Row],[Real]]","v":{"v":0,"d":"R$ 0.00"}}]
[null,"Transporte",null,null,{"$f":"_xlfn.SINGLE(Viagem[[#This Row],[Previsão]])-Viagem[[#This Row],[Real]]","v":{"v":0,"d":"R$ 0.00"}},{"$nulls":3},"Outros (guia na última coluna desta linha para Adicionar linha)",null,null,{"$f":"_xlfn.SINGLE(Diversos[[#This Row],[Previsão]])-Diversos[[#This Row],[Real]]","v":{"v":0,"d":"R$ 0.00"}}]
[null,"Outros (guia na última coluna desta linha para Adicionar linha)",null,null,{"$f":"_xlfn.SINGLE(Viagem[[#This Row],[Previsão]])-Viagem[[#This Row],[Real]]","v":{"v":0,"d":"R$ 0.00"}},{"$nulls":3},"Total",{"$f":"SUBTOTAL(109,Diversos[Previsão])","v":{"v":0,"d":"R$ 0.00"}},{"$f":"SUBTOTAL(109,Diversos[Real])","v":{"v":0,"d":"R$ 0.00"}},{"$f":"SUBTOTAL(109,Diversos[Diferença])","v":{"v":0,"d":"R$ 0.00"}}]
[null,"Total",{"$f":"SUBTOTAL(109,Viagem[Previsão])","v":{"v":0,"d":"R$ 0.00"}},{"$f":"SUBTOTAL(109,Viagem[Real])","v":{"v":0,"d":"R$ 0.00"}},{"$f":"SUBTOTAL(109,Viagem[Diferença])","v":{"v":0,"d":"R$ 0.00"}}]